[Event "58th Akiba Rubinstein D 2022"]
[Site "Polanica-Zdroj"]
[Date "2022.08.14"]
[Round "2.4"]
[White "Nowicki, Bartosz"]
[Black "Kryzia, Wiktor"]
[Result "1/2-1/2"]
[ECO "B35"]
[WhiteElo "2291"]
[BlackElo "1764"]
[Annotator "TA"]
[PlyCount "38"]
[EventDate "2022.08.13"]
[EventCountry "POL"]
[SourceTitle "playchess.com"]
[Source "ChessBase"]
[SourceQuality "1"]
[TimeControl "40/5400+30:1800+30"]

{[%evp 23,38,19,25,12,25,22,31,19,28,17,18,18,37,0,0,0,35]} 1. e4 {[%emt 0:00:02]} c5 {[%emt 0:00:06]} 2. Nf3 {[%emt 0:00:15]} Nc6 {[%emt 0:00:07]} 3. d4 {[%emt 0:00:06]} cxd4 {[%emt 0:00:07]} 4. Nxd4 {[%emt 0:00:04]} g6 {[%emt 0:00:08]} 5. Nc3 {[%emt 0:00:16]} Bg7 {[%emt 0:00:08]} 6. Be3 {[%emt 0:00:14]} Nf6 {[%emt 0:00:11]} 7. Bc4 {[%emt 0:00:29]} O-O {[%emt 0:00:10]} 8. Bb3 {[%emt 0:00:24]} d6 {[%emt 0:00:23]} 9. f3 {[%emt 0:01:19]} Bd7 {[%emt 0:00:21]} 10. Qd2 {[%emt 0:01:22]} Na5 {[%emt 0:02:21]} 11. O-O {[%emt 0:04:21]} Nxb3 {[%emt 0:11:48]} 12. axb3 {[%emt 0:02:46]} a6 {[%emt 0:00:55]} 13. Nd5 {[%emt 0:06:11] [#] B77: Sicilian Dragon: Yugoslav Attack, 9 Bc4 sidelines.} e6 $146 {[%emt 0:19:32]} ({Predecessor:} 13... Nxd5 14. exd5 e5 15. dxe6 Bxe6 16. c4 Re8 17. Bf2 Qc7 18. Rfc1 Rac8 19. Nxe6 Rxe6 20. b4 Qe7 {½-½ (33) Vollmer,S (1784)-Trigance,E (1783) FICGS email 2019}) 14. Nxf6+ {[%emt 0:05:06]} Qxf6 {[%emt 0:00:21]} 15. Rad1 {[%emt 0:03:00] White is slightly better.} d5 {[%emt 0:00:49]} 16. Bg5 {[%emt 0:13:16]} Qe5 {[%emt 0:14:13]} 17. Bf4 {[%emt 0:03:06]} Qf6 {[%emt 0:01:09] [#] ...e5 is the strong threat.} 18. Bg5 {[%emt 0:00:59]} Qe5 {[%emt 0:00:10]} 19. Bf4 {[%emt 0:00:27]} Qf6 {[%emt 0:00:08] Not much happened in this game.  Weighted Error Value: White=0.10 (very precise) /Black=0.09 (flawless)} 1/2-1/2

[Event "58th Akiba Rubinstein D 2022"]
[Site "Polanica-Zdroj"]
[Date "2022.08.14"]
[Round "2.5"]
[White "Wilgosz, Szczepan"]
[Black "Straszewski, Tomasz"]
[Result "0-1"]
[ECO "C63"]
[WhiteElo "1530"]
[BlackElo "1716"]
[Annotator "NA RC"]
[PlyCount "120"]
[EventDate "2022.08.13"]
[EventCountry "POL"]
[SourceTitle "playchess.com"]
[Source "ChessBase"]
[SourceQuality "1"]
[TimeControl "40/5400+30:1800+30"]

1. e4 e5 2. Nf3 Nc6 3. Bb5 f5 4. d3 Nf6 5. O-O Bc5 6. exf5 O-O 7. Nc3 d6 8. Ne4 Bb6 9. Bxc6 bxc6 10. Ng3 Nd5 11. Bg5 Qe8 12. d4 Bxf5 13. Re1 Bg4 14. Re4 Bxf3 15. gxf3 Qg6 16. Be3 Nxe3 17. fxe3 exd4 18. exd4 d5 19. Re5 Qf6 20. Kg2 Rae8 21. Qe2 Rxe5 22. dxe5 Qe6 23. Rf1 Rf4 24. Kh1 Bd4 25. c3 Bc5 26. Re1 g6 27. Qg2 Be7 28. Re3 Bg5 29. Ne2 Rg4 30. Qxg4 Qxg4 31. fxg4 Bxe3 32. Nd4 Bxd4 33. cxd4 c5 34. dxc5 Kf7 35. Kg2 Ke6 36. Kf3 Kxe5 37. Ke3 a5 38. b3 d4+ 39. Kd3 Kd5 40. c6 g5 41. a3 Kc5 42. b4+ axb4 43. axb4+ Kxb4 44. Kxd4 Kb5 45. Kd5 Kb6 46. Ke5 Kxc6 47. Kf6 Kd5 48. Kxg5 c5 49. Kh6 c4 50. Kxh7 c3 51. g5 c2 52. g6 c1=Q 53. g7 Qc2+ 54. Kg8 Qxh2 55. Kf7 Qf4+ 56. Kg6 Qg4+ 57. Kf7 Qe6+ 58. Kf8 Kd6 59. g8=N Qg6 60. Ne7 Qf6+ 0-1

[Event "58th Akiba Rubinstein D 2022"]
[Site "Polanica-Zdroj"]
[Date "2022.08.14"]
[Round "2.6"]
[White "Latacz, Grzegorz"]
[Black "Pieczulis, Blazej"]
[Result "1/2-1/2"]
[ECO "A80"]
[WhiteElo "1449"]
[BlackElo "1720"]
[Annotator "NA RC"]
[PlyCount "68"]
[EventDate "2022.08.13"]
[EventCountry "POL"]
[SourceTitle "playchess.com"]
[Source "ChessBase"]
[SourceQuality "1"]
[TimeControl "40/5400+30:1800+30"]

1. d4 {[%emt 0:00:01]} f5 {[%emt 0:00:20]} 2. Nc3 {[%emt 0:00:04]} Nf6 {[%emt 0:00:08]} 3. Bg5 {[%emt 0:00:05]} e6 {[%emt 0:00:32]} 4. f3 {[%emt 0:00:55]} Be7 {[%emt 0:08:35]} 5. Nh3 {[%emt 0:03:55]} d5 {[%emt 0:00:54]} 6. Qd2 {[%emt 0:02:17]} c6 {[%emt 0:03:22]} 7. O-O-O {[%emt 0:06:49]} b5 {[%emt 0:01:50]} 8. e4 {[%emt 0:11:41]} a5 {[%emt 0:08:53]} 9. exf5 {[%emt 0:04:18]} exf5 {[%emt 0:01:29]} 10. Bxf6 {[%emt 0:05:51]} Bxf6 {[%emt 0:00:20]} 11. Re1+ {[%emt 0:00:44]} Kf7 {[%emt 0:00:10]} 12. Kb1 {[%emt 0:10:01]} Na6 {[%emt 0:09:00]} 13. Rg1 {[%emt 0:05:49]} Nc7 {[%emt 0:06:41]} 14. g4 {[%emt 0:04:30]} g6 {[%emt 0:03:00]} 15. gxf5 {[%emt 0:08:17]} Bxf5 {[%emt 0:00:08]} 16. Ng5+ {[%emt 0:05:53]} Bxg5 {[%emt 0:02:48]} 17. Rxg5 {[%emt 0:01:06]} Ne6 {[%emt 0:00:20]} 18. Rg2 {[%emt 0:04:44]} Qf6 {[%emt 0:00:24]} 19. Ne2 {[%emt 0:02:21]} Rhe8 {[%emt 0:06:17]} 20. Rd1 {[%emt 0:00:42]} Reb8 {[%emt 0:01:29]} 21. Ng3 {[%emt 0:01:23]} Nf4 {[%emt 0:02:51]} 22. Nxf5 {[%emt 0:01:33]} Qxf5 {[%emt 0:00:56]} 23. Bd3 {[%emt 0:01:51]} Nxd3 {[%emt 0:04:49]} 24. Qxd3 {[%emt 0:01:28]} Qxd3 {[%emt 0:00:16]} 25. Rxd3 {[%emt 0:01:15]} Re8 {[%emt 0:00:06]} 26. Kc1 {[%emt 0:00:48]} Re1+ {[%emt 0:00:45]} 27. Kd2 {[%emt 0:00:46]} Rae8 {[%emt 0:03:48]} 28. Rc3 {[%emt 0:00:24]} R1e6 {[%emt 0:01:49]} 29. a3 {[%emt 0:00:29]} Kf6 {[%emt 0:04:41]} 30. Rd3 {[%emt 0:00:47]} Kf5 {[%emt 0:00:37]} 31. Rc3 {[%emt 0:00:40]} g5 {[%emt 0:02:10]} 32. Rd3 {[%emt 0:01:26]} h5 {[%emt 0:00:46]} 33. h3 {[%emt 0:00:27]} Kf4 {[%emt 0:06:43]} 34. Rc3 {[%emt 0:00:26]} R8e7 {[%emt 0:02:40]} 1/2-1/2

[Event "58th Akiba Rubinstein D 2022"]
[Site "Polanica-Zdroj"]
[Date "2022.08.14"]
[Round "2.7"]
[White "Bem, Tymoteusz"]
[Black "Sleczka, Krzysztof"]
[Result "1/2-1/2"]
[ECO "D52"]
[WhiteElo "1679"]
[BlackElo "1443"]
[Annotator "NA RC"]
[PlyCount "183"]
[EventDate "2022.08.13"]
[EventCountry "POL"]
[SourceTitle "playchess.com"]
[Source "ChessBase"]
[SourceQuality "1"]
[TimeControl "40/5400+30:1800+30"]

1. d4 d5 2. c4 e6 3. Nc3 Nf6 4. Nf3 c6 5. Bg5 Nbd7 6. e3 Qa5 7. Nd2 dxc4 8. Bxf6 Nxf6 9. Nxc4 Qc7 10. Bd3 Be7 11. Qc2 O-O 12. h3 c5 13. O-O Rd8 14. Rfd1 a6 15. dxc5 Bxc5 16. Ne4 Nxe4 17. Bxe4 g6 18. Rxd8+ Qxd8 19. Rd1 Qe7 20. Qd3 Rb8 21. a3 Kg7 22. b4 Ba7 23. Nd6 Bd7 24. Qc3+ Qf6 25. Qxf6+ Kxf6 26. Bxb7 Bb5 27. Bf3 Ba4 28. Rc1 Rd8 29. Ne4+ Kg7 30. Rc7 Bb8 31. Rc5 Rd3 32. Nc3 Bb3 33. Be2 Rd6 34. Ne4 Rd7 35. Rc3 Ba2 36. f4 e5 37. g3 f5 38. Nc5 Rd2 39. Kf1 exf4 40. gxf4 a5 41. bxa5 Ba7 42. a6 Bd5 43. Ne4 Bxe4 44. Rc7+ Kf6 45. Rxa7 Ra2 46. Bc4 Ra1+ 47. Kf2 g5 48. fxg5+ Kxg5 49. Rg7+ Kf6 50. Rxh7 Rxa3 51. h4 Kg6 52. Rh8 Kg7 53. Rg8+ Kh7 54. Rg5 Kh6 55. Ke2 Rc3 56. Bf7 Rc2+ 57. Kd1 Rc6 58. a7 Ra6 59. Rh5+ Kg7 60. Bc4 Rxa7 61. Kd2 Ra3 62. Rg5+ Kf6 63. Rg8 Ra1 64. h5 Rh1 65. Rg6+ Ke7 66. h6 Rh3 67. Bg8 Kf8 68. h7 Rh4 69. Kc3 Bb1 70. Rg1 Be4 71. Kd4 Bc2+ 72. Ke5 Rh6 73. Rg6 Rh4 74. Kf6 f4 75. Rg4 Rh6+ 76. Kg5 Rg6+ 77. Kxf4 Rxg4+ 78. Kxg4 Kg7 79. Kf4 Bb1 80. Ke5 Bc2 81. Be6 Bd1 82. Bf5 Bf3 83. Be4 Be2 84. Kf4 Bc4 85. Bc2 Bd5 86. Ke5 Bb7 87. Be4 Ba6 88. Kd4 Be2 89. Bg2 Kxh7 90. e4 Kg7 91. e5 Kf7 92. Ke4 1/2-1/2

[Event "58th Akiba Rubinstein D 2022"]
[Site "Polanica-Zdroj"]
[Date "2022.08.14"]
[Round "2.8"]
[White "Kraczek, Cezary"]
[Black "Jankowski, Franciszek"]
[Result "1/2-1/2"]
[ECO "B45"]
[WhiteElo "1657"]
[BlackElo "1483"]
[Annotator "NA RC"]
[PlyCount "123"]
[EventDate "2022.08.13"]
[EventCountry "POL"]
[SourceTitle "playchess.com"]
[Source "ChessBase"]
[SourceQuality "1"]
[TimeControl "40/5400+30:1800+30"]

1. e4 {[%emt 0:00:03]} c5 {[%emt 0:00:11]} 2. Nf3 {[%emt 0:00:15]} e6 {[%emt 0:00:06]} 3. d4 {[%emt 0:00:20]} cxd4 {[%emt 0:00:08]} 4. Nxd4 {[%emt 0:00:06]} Nf6 5. Nc3 {[%emt 0:00:08]} Nc6 {[%emt 0:00:14]} 6. Ndb5 {[%emt 0:00:17]} Bb4 {[%emt 0:00:10]} 7. Nd6+ {[%emt 0:00:52]} Ke7 {[%emt 0:00:07]} 8. Nxc8+ {[%emt 0:00:30]} Rxc8 {[%emt 0:00:06]} 9. Bd3 {[%emt 0:00:17]} Re8 {[%emt 0:02:33]} 10. O-O {[%emt 0:02:48]} Kf8 {[%emt 0:01:24]} 11. Bf4 {[%emt 0:03:29]} Kg8 {[%emt 0:15:53]} 12. e5 {[%emt 0:10:19]} Bxc3 {[%emt 0:09:32]} 13. bxc3 {[%emt 0:00:12]} Nd5 {[%emt 0:00:12]} 14. Bg3 {[%emt 0:00:47]} Nxc3 {[%emt 0:13:40]} 15. Bxh7+ {[%emt 0:09:24]} Kxh7 {[%emt 0:00:42]} 16. Qd3+ {[%emt 0:00:04]} Kg8 {[%emt 0:00:41]} 17. Qxc3 {[%emt 0:01:08]} Ne7 {[%emt 0:12:21]} 18. Qb3 {[%emt 0:06:04]} Qc7 {[%emt 0:01:42]} 19. Rfd1 {[%emt 0:04:53]} Nd5 {[%emt 0:01:25]} 20. Rac1 {[%emt 0:10:05]} Nc3 {[%emt 0:04:15]} 21. Rd2 {[%emt 0:02:46]} Qc4 {[%emt 0:01:02]} 22. Kh1 {[%emt 0:03:02]} Qxb3 {[%emt 0:20:06]} 23. axb3 {[%emt 0:02:15]} Rc7 {[%emt 0:04:16]} 24. f3 {[%emt 0:04:35]} Rec8 {[%emt 0:00:36]} 25. Ra1 {[%emt 0:01:13]} a6 26. h3 {[%emt 0:01:03]} Kf8 {[%emt 0:02:47]} 27. Kh2 {[%emt 0:00:56]} Ke8 {[%emt 0:00:42]} 28. Bf2 {[%emt 0:04:27]} Rc6 {[%emt 0:00:56]} 29. Bd4 {[%emt 0:02:41]} Ke7 {[%emt 0:01:22]} 30. Re1 {[%emt 0:05:11]} Nb5 31. c4 {[%emt 0:01:15]} Nxd4 {[%emt 0:02:53]} 32. Rxd4 {[%emt 0:00:01]} Rb6 {[%emt 0:02:58]} 33. Re3 {[%emt 0:01:21]} Rb4 {[%emt 0:00:29]} 34. Red3 {[%emt 0:01:37]} Rc7 {[%emt 0:00:14]} 35. Rg4 {[%emt 0:02:25]} g6 {[%emt 0:01:18]} 36. Rgd4 {[%emt 0:01:57]} b5 {[%emt 0:00:56]} 37. Rd6 {[%emt 0:04:05]} bxc4 {[%emt 0:00:36]} 38. bxc4 {[%emt 0:00:02]} Rbxc4 {[%emt 0:00:39]} 39. Rxa6 {[%emt 0:00:14]} R4c6 {[%emt 0:00:47]} 40. Ra4 {[%emt 0:04:18]} d6 {[%emt 0:01:00]} 41. exd6+ {[%emt 0:31:07]} Rxd6 {[%emt 0:30:07]} 42. Rxd6 {[%emt 0:00:19]} Kxd6 {[%emt 0:00:06]} 43. Ra8 {[%emt 0:00:22]} Ke5 {[%emt 0:00:37]} 44. Kg3 {[%emt 0:00:42]} Rc4 {[%emt 0:00:49]} 45. Rf8 {[%emt 0:00:25]} Kf6 {[%emt 0:00:17]} 46. h4 {[%emt 0:00:56]} Ra4 {[%emt 0:00:38]} 47. Rb8 {[%emt 0:00:37]} Rc4 {[%emt 0:00:20]} 48. Rb5 {[%emt 0:00:49]} e5 {[%emt 0:00:51]} 49. Rb7 {[%emt 0:00:28]} Ra4 {[%emt 0:00:12]} 50. Rb6+ {[%emt 0:00:42]} Kf5 {[%emt 0:00:16]} 51. Rb7 {[%emt 0:00:10]} Kf6 {[%emt 0:00:07]} 52. Rc7 {[%emt 0:01:10]} Rb4 {[%emt 0:00:05]} 53. Kh3 {[%emt 0:01:21]} Rb3 {[%emt 0:00:59]} 54. Kg4 {[%emt 0:01:11]} Rb4+ {[%emt 0:00:07]} 55. Kg3 {[%emt 0:00:24]} Ra4 {[%emt 0:00:05]} 56. Rc8 {[%emt 0:02:49]} Rb4 {[%emt 0:00:31]} 57. Rh8 {[%emt 0:01:18]} Kg7 {[%emt 0:00:09]} 58. Re8 {[%emt 0:00:19]} Kf6 {[%emt 0:00:07]} 59. Ra8 {[%emt 0:00:52]} Rc4 {[%emt 0:00:16]} 60. Ra6+ {[%emt 0:00:40]} Kf5 {[%emt 0:00:22]} 61. Ra7 {[%emt 0:00:16]} Kf6 {[%emt 0:00:12]} 62. Ra5 {[%emt 0:01:30]} 1/2-1/2

[Event "58th Akiba Rubinstein D 2022"]
[Site "Polanica-Zdroj"]
[Date "2022.08.14"]
[Round "2.9"]
[White "Urbanski, Wojciech"]
[Black "Mazus, Jakub"]
[Result "1-0"]
[ECO "C65"]
[WhiteElo "1632"]
[BlackElo "1241"]
[Annotator "NA RC"]
[PlyCount "67"]
[EventDate "2022.08.13"]
[EventCountry "POL"]
[SourceTitle "playchess.com"]
[Source "ChessBase"]
[SourceQuality "1"]
[TimeControl "40/5400+30:1800+30"]

1. e4 {[%emt 0:00:03]} e5 {[%emt 0:00:20]} 2. Nf3 {[%emt 0:00:40]} Nc6 {[%emt 0:00:10]} 3. Bb5 {[%emt 0:00:22]} Nf6 {[%emt 0:00:10]} 4. d3 {[%emt 0:00:36]} Bc5 {[%emt 0:00:07]} 5. O-O {[%emt 0:00:22]} d6 {[%emt 0:15:34]} 6. c3 {[%emt 0:01:32]} a6 {[%emt 0:01:52]} 7. Ba4 {[%emt 0:04:47]} Bg4 {[%emt 0:07:17]} 8. Nbd2 {[%emt 0:03:03]} Qb8 {[%emt 0:06:30]} 9. b4 {[%emt 0:06:51]} Bb6 {[%emt 0:08:02]} 10. Bb3 {[%emt 0:02:31]} O-O {[%emt 0:02:07]} 11. Nc4 {[%emt 0:01:35]} Ba7 {[%emt 0:01:44]} 12. Bg5 {[%emt 0:03:02]} Nd7 {[%emt 0:03:11]} 13. Ne3 {[%emt 0:02:14]} Be6 {[%emt 0:01:39]} 14. Nd5 {[%emt 0:03:48]} Nd8 {[%emt 0:05:02]} 15. d4 {[%emt 0:09:00]} f6 {[%emt 0:08:03]} 16. Be3 {[%emt 0:01:26]} Re8 {[%emt 0:02:11]} 17. c4 {[%emt 0:06:39]} exd4 {[%emt 0:04:38]} 18. Bxd4 {[%emt 0:01:45]} Bxd4 {[%emt 0:00:04]} 19. Nxd4 {[%emt 0:00:20]} Ne5 {[%emt 0:01:45]} 20. Nxe6 {[%emt 0:10:27]} Nxe6 {[%emt 0:00:27]} 21. f4 {[%emt 0:00:35]} Nc6 {[%emt 0:02:09]} 22. c5 {[%emt 0:06:32]} Ned4 {[%emt 0:06:12]} 23. Nxf6+ {[%emt 0:00:53]} Kh8 {[%emt 0:01:09]} 24. Nxe8 {[%emt 0:01:35]} Qxe8 {[%emt 0:01:42]} 25. Bd5 {[%emt 0:00:48]} dxc5 {[%emt 0:02:38]} 26. bxc5 {[%emt 0:00:47]} Rd8 {[%emt 0:00:23]} 27. Rb1 {[%emt 0:01:35]} Nb5 {[%emt 0:00:13]} 28. Qg4 {[%emt 0:02:54]} Na5 {[%emt 0:02:25]} 29. Rf3 {[%emt 0:04:16]} c6 {[%emt 0:01:25]} 30. Rg3 {[%emt 0:01:54]} g6 {[%emt 0:00:46]} 31. Be6 {[%emt 0:01:39]} Nd4 {[%emt 0:03:30]} 32. f5 {[%emt 0:01:49]} h5 {[%emt 0:02:47]} 33. Qxg6 {[%emt 0:03:36]} Ne2+ {[%emt 0:00:29]} 34. Kf2 {[%emt 0:00:22]} 1-0

[Event "58th Akiba Rubinstein D 2022"]
[Site "Polanica-Zdroj"]
[Date "2022.08.14"]
[Round "2.10"]
[White "Wilgosz, Tomasz"]
[Black "Wziatek, Marek"]
[Result "1-0"]
[ECO "B30"]
[WhiteElo "1513"]
[BlackElo "1617"]
[Annotator "NA RC"]
[PlyCount "97"]
[EventDate "2022.08.13"]
[EventCountry "POL"]
[SourceTitle "playchess.com"]
[Source "ChessBase"]
[SourceQuality "1"]
[TimeControl "40/5400+30:1800+30"]

1. e4 {[%emt 0:00:04]} c5 {[%emt 0:00:00]} 2. Nf3 {[%emt 0:00:16]} Nc6 {[%emt 0:00:00]} 3. c3 {[%emt 0:00:36]} d5 {[%emt 0:01:20]} 4. exd5 {[%emt 0:00:45]} Qxd5 {[%emt 0:00:02]} 5. d4 {[%emt 0:00:34]} Bg4 {[%emt 0:00:40]} 6. Be2 {[%emt 0:00:55]} e6 {[%emt 0:06:05]} 7. Be3 {[%emt 0:05:24]} cxd4 {[%emt 0:03:14]} 8. cxd4 {[%emt 0:03:26]} Qa5+ {[%emt 0:03:35]} 9. Nc3 {[%emt 0:02:00]} Nf6 {[%emt 0:00:48]} 10. O-O {[%emt 0:01:12]} Bb4 {[%emt 0:02:22]} 11. Qb3 {[%emt 0:03:27]} O-O {[%emt 0:04:17]} 12. a3 {[%emt 0:01:22]} Bxc3 {[%emt 0:03:54]} 13. bxc3 {[%emt 0:00:21]} Qd5 {[%emt 0:02:02]} 14. c4 {[%emt 0:03:00]} Qd7 {[%emt 0:01:38]} 15. Rfd1 Bxf3 {[%emt 0:13:24]} 16. Bxf3 {[%emt 0:02:38]} Rac8 {[%emt 0:04:06]} 17. Rac1 {[%emt 0:05:13]} Na5 {[%emt 0:10:42]} 18. Qb4 {[%emt 0:02:58]} Qc7 {[%emt 0:05:43]} 19. d5 {[%emt 0:03:48]} b6 {[%emt 0:05:03]} 20. d6 {[%emt 0:03:15]} Qd7 {[%emt 0:00:17]} 21. c5 {[%emt 0:02:29]} Nd5 {[%emt 0:00:42]} 22. Bxd5 {[%emt 0:02:02]} exd5 {[%emt 0:00:01]} 23. Rxd5 {[%emt 0:02:11]} Nb7 {[%emt 0:06:57]} 24. cxb6 {[%emt 0:02:16]} Rxc1+ {[%emt 0:00:54]} 25. Bxc1 {[%emt 0:00:02]} Rc8 {[%emt 0:02:17]} 26. Be3 {[%emt 0:01:55]} Qc6 {[%emt 0:09:39]} 27. Rd1 {[%emt 0:01:22]} axb6 {[%emt 0:00:39]} 28. Qxb6 {[%emt 0:04:12]} Qxb6 {[%emt 0:00:41]} 29. Bxb6 {[%emt 0:00:16]} Nxd6 {[%emt 0:00:05]} 30. a4 {[%emt 0:00:53]} Nc4 {[%emt 0:02:28]} 31. Rd8+ {[%emt 0:01:18]} Rxd8 {[%emt 0:00:02]} 32. Bxd8 {[%emt 0:00:01]} Kf8 {[%emt 0:03:43]} 33. f4 {[%emt 0:06:51]} Ke8 {[%emt 0:00:12]} 34. Bh4 {[%emt 0:01:04]} Kd7 {[%emt 0:00:47]} 35. Be1 {[%emt 0:00:50]} Kc6 {[%emt 0:01:38]} 36. Kf2 {[%emt 0:00:44]} f5 {[%emt 0:01:33]} 37. Bc3 {[%emt 0:01:27]} g6 {[%emt 0:00:27]} 38. Ke2 {[%emt 0:00:21]} Nb6 {[%emt 0:04:05]} 39. a5 {[%emt 0:00:41]} Nd5 {[%emt 0:00:19]} 40. Bd2 {[%emt 0:00:26]} Nc7 {[%emt 0:00:34]} 41. Kf3 {[%emt 0:32:11]} Kb5 {[%emt 0:30:22]} 42. g4 {[%emt 0:00:36]} Ne6 {[%emt 0:02:04]} 43. gxf5 {[%emt 0:01:01]} gxf5 {[%emt 0:00:01]} 44. Be1 {[%emt 0:04:59]} Nc5 {[%emt 0:00:30]} 45. Kg3 {[%emt 0:01:04]} Nd3 {[%emt 0:01:06]} 46. Bd2 {[%emt 0:01:28]} Nc5 {[%emt 0:00:19]} 47. Kh4 {[%emt 0:00:23]} Ne4 {[%emt 0:00:19]} 48. Be1 {[%emt 0:00:15]} Nc5 {[%emt 0:00:41]} 49. Kg5 {[%emt 0:00:30]} 1-0

[Event "58th Akiba Rubinstein D 2022"]
[Site "Polanica-Zdroj"]
[Date "2022.08.14"]
[Round "2.11"]
[White "Marek, Grzegorz"]
[Black "Milczarek, Robert"]
[Result "1/2-1/2"]
[ECO "A01"]
[WhiteElo "1478"]
[BlackElo "1653"]
[Annotator "NA RC"]
[PlyCount "32"]
[EventDate "2022.08.13"]
[EventCountry "POL"]
[SourceTitle "playchess.com"]
[Source "ChessBase"]
[SourceQuality "1"]
[TimeControl "40/5400+30:1800+30"]

1. b3 {[%emt 0:00:06]} e5 {[%emt 0:00:14]} 2. Bb2 {[%emt 0:00:06]} Nc6 {[%emt 0:00:21]} 3. e3 {[%emt 0:00:08]} g6 {[%emt 0:02:21]} 4. d4 {[%emt 0:07:36]} exd4 {[%emt 0:04:04]} 5. exd4 {[%emt 0:00:13]} Bg7 {[%emt 0:00:54]} 6. Nf3 {[%emt 0:01:31]} Nge7 {[%emt 0:03:01]} 7. Be2 {[%emt 0:05:08]} O-O {[%emt 0:02:25]} 8. O-O {[%emt 0:03:32]} d5 {[%emt 0:02:44]} 9. Re1 {[%emt 0:09:14]} Bg4 {[%emt 0:09:40]} 10. h3 {[%emt 0:05:01]} Be6 {[%emt 0:06:47]} 11. Nbd2 {[%emt 0:08:17]} Nf5 {[%emt 0:04:39]} 12. c3 {[%emt 0:00:48]} Nd6 {[%emt 0:11:00]} 13. Qc2 {[%emt 0:02:54]} Qd7 {[%emt 0:03:13]} 14. Ba3 {[%emt 0:06:10]} Rfe8 {[%emt 0:02:47]} 15. Bd3 {[%emt 0:01:00]} h6 {[%emt 0:02:37]} 16. Re3 {[%emt 0:04:53]} Bf5 {[%emt 0:08:32]} 1/2-1/2

[Event "58th Akiba Rubinstein D 2022"]
[Site "Polanica-Zdroj"]
[Date "2022.08.14"]
[Round "2.12"]
[White "Jasiulewicz, Dawid"]
[Black "Olszewska, Wiktoria"]
[Result "1-0"]
[ECO "E92"]
[WhiteElo "1525"]
[BlackElo "1232"]
[Annotator "NA RC"]
[PlyCount "77"]
[EventDate "2022.08.13"]
[EventCountry "POL"]
[SourceTitle "playchess.com"]
[Source "ChessBase"]
[SourceQuality "1"]
[TimeControl "40/5400+30:1800+30"]

1. d4 {[%emt 0:00:02]} Nf6 {[%emt 0:00:14]} 2. Nf3 {[%emt 0:00:06]} g6 {[%emt 0:02:39]} 3. c4 {[%emt 0:00:05]} Bg7 {[%emt 0:00:12]} 4. Nc3 {[%emt 0:00:06]} O-O {[%emt 0:00:15]} 5. e4 {[%emt 0:00:04]} d6 {[%emt 0:00:22]} 6. Be2 {[%emt 0:00:06]} e5 {[%emt 0:01:14]} 7. Be3 {[%emt 0:00:05]} Nc6 {[%emt 0:00:49]} 8. d5 {[%emt 0:00:06]} Ne7 {[%emt 0:00:05]} 9. Nd2 {[%emt 0:00:04]} Ne8 {[%emt 0:02:00]} 10. c5 {[%emt 0:00:29]} f5 {[%emt 0:04:45]} 11. f3 {[%emt 0:00:16]} f4 {[%emt 0:01:22]} 12. Bf2 {[%emt 0:00:09]} Nf6 {[%emt 0:03:00]} 13. Nc4 {[%emt 0:05:05]} g5 {[%emt 0:21:25]} 14. cxd6 {[%emt 0:04:17]} cxd6 {[%emt 0:01:13]} 15. Nb5 {[%emt 0:05:18]} Ne8 {[%emt 0:01:47]} 16. Bxa7 {[%emt 0:03:50]} Rf6 {[%emt 0:10:47]} 17. Bb6 {[%emt 0:03:54]} Qd7 {[%emt 0:00:37]} 18. Qb3 {[%emt 0:02:19]} Ng6 {[%emt 0:09:11]} 19. Bf2 {[%emt 0:06:43]} Qd8 {[%emt 0:05:22]} 20. Nb6 {[%emt 0:03:13]} Rb8 {[%emt 0:01:08]} 21. Rc1 {[%emt 0:04:38]} Bd7 {[%emt 0:04:54]} 22. Qc3 {[%emt 0:01:12]} Rf7 {[%emt 0:03:40]} 23. Nc7 {[%emt 0:02:38]} Nxc7 {[%emt 0:02:38]} 24. Qxc7 {[%emt 0:00:06]} Qxc7 {[%emt 0:02:15]} 25. Rc3 Qc6 26. Rxc6 {[%emt 0:00:37]} Be8 {[%emt 0:01:28]} 27. Rc3 {[%emt 0:01:10]} Bf6 {[%emt 0:01:57]} 28. Kd2 {[%emt 0:01:33]} Bd8 {[%emt 0:00:58]} 29. Rhc1 {[%emt 0:00:09]} Ne7 {[%emt 0:02:14]} 30. b3 {[%emt 0:02:43]} Kg7 {[%emt 0:07:18]} 31. a4 {[%emt 0:00:18]} h5 {[%emt 0:01:40]} 32. a5 {[%emt 0:00:28]} Kh6 {[%emt 0:01:09]} 33. b4 {[%emt 0:00:13]} Rg7 {[%emt 0:00:49]} 34. Nc8 {[%emt 0:01:35]} Rg6 {[%emt 0:02:25]} 35. Nxe7 {[%emt 0:00:11]} Bxe7 {[%emt 0:00:02]} 36. Rc8 {[%emt 0:00:01]} Rxc8 {[%emt 0:00:31]} 37. Rxc8 {[%emt 0:00:02]} Ba4 {[%emt 0:01:15]} 38. Rc7 {[%emt 0:00:13]} Rg7 {[%emt 0:00:38]} 39. Rxb7 {[%emt 0:00:09]} 1-0

[Event "58th Akiba Rubinstein D 2022"]
[Site "Polanica-Zdroj"]
[Date "2022.08.14"]
[Round "2.13"]
[White "Bartosik, Dawid"]
[Black "Krygiel, Konrad"]
[Result "1/2-1/2"]
[ECO "C55"]
[WhiteElo "1443"]
[BlackElo "1603"]
[Annotator "NA RC"]
[PlyCount "43"]
[EventDate "2022.08.13"]
[EventCountry "POL"]
[SourceTitle "playchess.com"]
[Source "ChessBase"]
[SourceQuality "1"]
[TimeControl "40/5400+30:1800+30"]

1. e4 {[%emt 0:00:02]} e5 {[%emt 0:02:09]} 2. Nf3 {[%emt 0:00:09]} Nc6 {[%emt 0:00:15]} 3. d4 {[%emt 0:00:14]} exd4 4. Bc4 {[%emt 0:00:14]} Nf6 {[%emt 0:03:19]} 5. e5 {[%emt 0:00:12]} d5 {[%emt 0:00:03]} 6. Bb5 {[%emt 0:00:08]} Ne4 {[%emt 0:00:05]} 7. Nxd4 {[%emt 0:00:16]} Bc5 {[%emt 0:00:58]} 8. Be3 {[%emt 0:00:15]} O-O {[%emt 0:10:37]} 9. Nxc6 {[%emt 0:03:35]} bxc6 {[%emt 0:00:09]} 10. Bxc5 {[%emt 0:01:55]} Nxc5 {[%emt 0:00:37]} 11. Bxc6 {[%emt 0:05:17]} Rb8 {[%emt 0:02:26]} 12. O-O {[%emt 0:01:52]} Rxb2 {[%emt 0:10:15]} 13. Na3 {[%emt 0:12:09]} Qe7 {[%emt 0:05:46]} 14. Qc1 {[%emt 0:12:19]} Qxe5 {[%emt 0:16:45]} 15. Bxd5 {[%emt 0:00:46]} Qc3 {[%emt 0:07:16]} 16. Bb3 {[%emt 0:06:11]} Nxb3 {[%emt 0:09:27]} 17. axb3 {[%emt 0:00:48]} Bf5 {[%emt 0:01:44]} 18. Nb5 {[%emt 0:07:34]} Qxc2 {[%emt 0:05:52]} 19. Qxc2 {[%emt 0:01:53]} Bxc2 {[%emt 0:02:17]} 20. Nxc7 {[%emt 0:02:15]} Bxb3 {[%emt 0:03:39]} 21. Rxa7 {[%emt 0:00:39]} Bc4 {[%emt 0:01:35]} 22. Rc1 {[%emt 0:03:04]} 1/2-1/2